Cogmind - Beta 14 @@@ ROGUE MODE // 2024.11.19 @ 19:00:10 Player: BEEEEES Result: Destroyed by D-53 Grenadier with Mini Grenade Launcher Performance ------------- Evolutions (0) 0 Regions Visited (4) 800 Robots Destroyed (10) 50 Value Destroyed (199) 199 Prototype IDs (0) 0 Alien Tech Used (0) 0 Bonus (0) 0 TOTAL SCORE: 1049 Bonus ------- None Cogmind --------- Core Integrity 0/250 Matter 300/300 Energy 99/100 System Corruption 4% Temperature Cool (0) Movement Rolling (80) Location -9/Mines Parts ------- > --- POWER (1) -------- (None) > --- PROPULSION (2) --- Wheel > --- UTILITY (2) ------ Small Storage Unit Improved Terrain Scanner > --- WEAPON (2) ------- (None) > --- INVENTORY (8) ---- Light Ion Engine Light Ion Engine Light Ion Engine Light Treads Experimental Sensor Array Utility Shielding Mining Laser Peak State ------------ > --- POWER ------------ Light Nuclear Core > --- PROPULSION ------- Light Treads Compact Wheel > --- UTILITY ---------- Small Storage Unit Seismic Detector > --- WEAPON ----------- Light Assault Rifle Light Assault Rifle > --- INVENTORY -------- Light Ion Engine Light Ion Engine Light Ion Engine Light Treads Wheel Utility Shielding Medium Laser Mining Laser [Rating: 9] Favorites ----------- Power Light Nuclear Core Engine Light Ion Engine Power Core Light Nuclear Core Propulsion Hover Unit Treads Light Treads Leg Aluminum Leg Wheel Wheel Hover Unit Hover Unit Utility Small Storage Unit Device Seismic Detector Storage Small Storage Unit Weapon Light Assault Rifle Ballistic Gun Light Assault Rifle Launcher Rocket Launcher Build | -11 -10 -10 -10 -9 ------- Run | Yrd Mat Min Exi Min Slots Evolved . | . . . . . Power . | . . . . . Propulsion . | . . . . . Utility . | . . . . . Weapon . | . . . . . Parts Attached 12 | 3 . 6 . 3 Power 2 | . . 2 . . Engine 1 | . . 1 . . Core 1 | . . 1 . . Reactor . | . . . . . Propulsion 7 | 2 . 4 . 1 Treads 2 | 1 . 1 . . Leg . | . . . . . Wheel 3 | 1 . 1 . 1 Hover 2 | . . 2 . . Flight . | . . . . . Utility 2 | 1 . . . 1 Device 2 | 1 . . . 1 Storage . | . . . . . Processor . | . . . . . Hackware . | . . . . . Protection . | . . . . . Artifact . | . . . . . Weapon 1 | . . . . 1 Energy Gun . | . . . . . Energy Cannon . | . . . . . Ballistic Gun . | . . . . . Ballistic Cannon . | . . . . . Launcher 1 | . . . . 1 Special Weapon . | . . . . . Impact Weapon . | . . . . . Slashing Weapon . | . . . . . Piercing Weapon . | . . . . . Special Melee Weapon . | . . . . . Unidentified Prototypes . | . . . . . Parts Lost 7 | . . 1 . 6 Power 1 | . . . . 1 Propulsion 3 | . . 1 . 2 Utility 1 | . . . . 1 Weapon 2 | . . . . 2 Highest Loss Streak 6 | . . 1 . 6 To Critical Strikes . | . . . . . Average Slot Usage (%) 88 | . 100 92 85 62 Engine 4 | . 14 4 . . Core 8 | . . 9 14 8 Treads 5 | . 14 8 . . Wheel 5 | . 14 6 . 2 Hover 15 | . . 12 28 17 Device 13 | . 14 14 14 10 Storage 14 | . 14 14 14 14 Ballistic Gun 19 | . 28 22 14 8 Peak Build Rating 9 | 7 7 9 9 9 Average Rating 7 | 5 7 8 9 7 On Entrance 7 | 6 7 7 9 9 Naked Turns . | . . . . . Heaviest Build 13 | 11 11 13 12 12 Greatest Support 20 | 20 20 20 12 12 Greatest Overweight (x) 3 | 3 1 2 . 1 Average Overweight (x) . | . . . . . Largest Inventory Capacity 8 | 8 8 8 8 8 Average Capacity 8 | 8 8 8 8 8 Most Carried 8 | 6 7 8 8 8 Average Carried 7 | 5 6 7 8 7 Final Capacity 8 | 8 8 8 8 8 Final Carried 8 | 6 7 8 8 7 Class Distribution -------------------- 100% | Mutant Dominant Class ---------------- Mutant | -10/Materials Mutant | -10/Mines Mutant | -10/Exiles Mutant | -9/Mines Resources | -11 -10 -10 -10 -9 ----------- Run | Yrd Mat Min Exi Min Matter Collected 399 | 248 20 111 . 20 Remotely . | . . . . . Salvage Created 388 | 128 95 115 . 50 Parts 16 | 7 2 7 . . Haulers Intercepted . | . . . . . Recyclers Shooed . | . . . . . Parts Field Recycled . | . . . . . Retrieved Matter . | . . . . . Parts Self-Destructed . | . . . . . Prevented . | . . . . . Kills | -11 -10 -10 -10 -9 ------- Run | Yrd Mat Min Exi Min Combat Hostiles Destroyed 15 | . 2 5 . 8 Melee 1 | . . . . 1 Guns 7 | . 2 5 . . AOE 7 | . . . . 7 Classes Destroyed 5 | 2 1 1 . 1 Tunneler 2 | 2 . . . . Recycler 1 | 1 . . . . Swarmer 3 | . . 3 . . Grunt 4 | . 2 2 . . Assembled 8 | . . . . 8 Best Kill Streak 8 | 1 2 3 . 8 Combat Bots Only 8 | . 2 3 . 8 Max Kills in Single Turn 4 | 1 1 1 . 4 Gunslinging . | . . . . . Exploded 4 | . . . . 4 Melee 1 | . . . . 1 Uniques/NPCs Destroyed . | . . . . . Combat | -11 -10 -10 -10 -9 -------- Run | Yrd Mat Min Exi Min Hostile Shots Fired 72 | . 6 40 . 26 Missed 22 | . 3 10 . 9 Damage Taken 843 | . 31 306 . 506 Core 254 | . . 77 . 177 Absorbed by Shields . | . . . . . Core Remaining (%) 100 | 100 . . . . Volleys Fired 53 | 14 13 20 . 6 Largest 2 | 2 2 2 . 1 Hottest 40 | 40 40 40 . 33 Shots Fired 100 | 28 26 40 . 6 Gun 98 | 28 26 40 . 4 Cannon . | . . . . . Launcher 2 | . . . . 2 Special . | . . . . . Kinetic 98 | 28 26 40 . 4 Thermal . | . . . . . Explosive 2 | . . . . 2 Electromagnetic . | . . . . . Robot Hit Streak 9 | 4 9 6 . 2 Robot Miss Streak 9 | 3 6 9 . 2 Penetration Max . | . . . . . Secondary Targets 2 | . . 2 . . Max Gunslinging Chain 1 | . . 1 . . Shots Hit Robots 60 | 13 16 28 . 3 Core Hits 36 | 5 5 11 . 15 Critical Kills 1 | 1 . . . . Critical Parts Destroyed . | . . . . . Critical Strikes 1 | 1 . . . . Destroy 1 | 1 . . . . Melee Attacks . | . . . . . Impact . | . . . . . Slashing . | . . . . . Piercing . | . . . . . Sneak Attacks . | . . . . . Combat Hostiles . | . . . . . Follow-up Attacks . | . . . . . Damage Inflicted 932 | 107 137 237 . 451 Guns 489 | 107 137 237 . 8 Cannons . | . . . . . Explosions 423 | . . . . 423 Melee . | . . . . . Ramming 20 | . . . . 20 Kinetic 489 | 107 137 237 . 8 Thermal . | . . . . . Explosive 423 | . . . . 423 Electromagnetic . | . . . . . Impact . | . . . . . Slashing . | . . . . . Piercing . | . . . . . Highest Corruption 4 | . . . . 4 Average Corruption 3 | . . . . 3 Corruption Purged . | . . . . . Corruption Blocked . | . . . . . Overload Shots . | . . . . . Overflow Damage 54 | . . . . 54 Projectiles . | . . . . . Explosions 54 | . . . . 54 Melee . | . . . . . Knockbacks . | . . . . . Impact . | . . . . . Kinetic . | . . . . . Secondary . | . . . . . Self-Inflicted Damage 101 | . . . . 101 Shots 2 | . . . . 2 Rammed 8 | . . . . 8 Targets Rammed 8 | . . . . 8 Kicked . | . . . . . Crushed . | . . . . . Highest Temperature 24 | . 6 24 . 6 Average Temperature 8 | . 6 9 . 4 Received Heat Transfer 129 | . 18 111 . . Siege Activations . | . . . . . Robots Corrupted . | . . . . . Combat Hostiles . | . . . . . Parts Fried . | . . . . . Impact Corruptions . | . . . . . Robots Melted . | . . . . . Combat Hostiles . | . . . . . Parts Melted . | . . . . . Heat Transferred . | . . . . . Parts Sabotaged . | . . . . . Parts Stolen . | . . . . . Parts Stripped . | . . . . . Power Chain Reactions . | . . . . . Alert | -11 -10 -10 -10 -9 ------- Run | Yrd Mat Min Exi Min Peak Influence 175 | 15 92 175 . 15 Initial 35 | . 9 35 . . Average 86 | 8 61 143 . 3 Maximum Alert Level . | . . . . . Low Security (%) 100 | 100 100 100 . 100 Level 1 . | . . . . . Level 2 . | . . . . . Level 3 . | . . . . . Level 4 . | . . . . . Level 5 . | . . . . . High Security . | . . . . . Max Security . | . . . . . Squads Dispatched 1 | . 1 . . . Investigation . | . . . . . Extermination . | . . . . . Reinforcement 1 | . 1 . . . Assault . | . . . . . Garrison . | . . . . . Intercept . | . . . . . Searches Triggered . | . . . . . Construction Impeded . | . . . . . Haulers Reinforced . | . . . . . Active Scanning Responses . | . . . . . Cargo Convoy Interrupts . | . . . . . Stealth | -11 -10 -10 -10 -9 --------- Run | Yrd Mat Min Exi Min Distress Signals . | . . . . . Communications Jammed . | . . . . . Distress Signals . | . . . . . Times Spotted 28 | . 4 7 . 17 Peak Tracking Total 16 | . 2 3 . 16 Tactical Retreats 2 | . . 1 . 1 Traps | -11 -10 -10 -10 -9 ------- Run | Yrd Mat Min Exi Min Traps Triggered . | . . . . . Indirectly . | . . . . . Trap Hack Attempts . | . . . . . Triggered . | . . . . . Disarmed . | . . . . . Reprogrammed . | . . . . . Reused . | . . . . . Traps Extracted . | . . . . . Installed . | . . . . . Triggered . | . . . . . Machines | -11 -10 -10 -10 -9 ---------- Run | Yrd Mat Min Exi Min Machines Disabled . | . . . . . Max in Single Turn . | . . . . . Machines Repaired . | . . . . . Machines Dismantled . | . . . . . Machines Sabotaged . | . . . . . Overloaded Fab Kills . | . . . . . Hacking | -11 -10 -10 -10 -9 --------- Run | Yrd Mat Min Exi Min Machines Accessed 7 | . 3 . 4 . Terminals 3 | . 3 . . . Fabricators . | . . . . . Repair Stations . | . . . . . Recycling Units . | . . . . . Scanalyzers . | . . . . . Garrison Access . | . . . . . Total Hacks 11 | . 7 . 4 . Successful 8 | . 4 . 4 . Failed 3 | . 3 . . . Catastrophic . | . . . . . Database Lockouts . | . . . . . Manual 9 | . 6 . 3 . Terminals 7 | . 7 . . . Fabricators . | . . . . . Repair Stations . | . . . . . Recycling Units . | . . . . . Scanalyzers . | . . . . . Garrison Access . | . . . . . Terminal Hacks 5 | . 1 . 4 . Record 4 | . . . 4 . Locate Traps 1 | . 1 . . . Fabricator Hacks . | . . . . . Repair Station Hacks . | . . . . . Recycling Unit Hacks . | . . . . . Scanalyzer . | . . . . . Garrison Access Hacks . | . . . . . Unauthorized Hacks 3 | . 3 . . . Terminals 3 | . 3 . . . Botnet 3 | . 3 . . . Fabricators . | . . . . . Repair Stations . | . . . . . Recycling Units . | . . . . . Scanalyzers . | . . . . . Garrison Access . | . . . . . Data Cores Recovered . | . . . . . Used . | . . . . . Hacking Detections 2 | . 2 . . . Full Trace Events . | . . . . . Feedback Events . | . . . . . Feedback Blocked . | . . . . . Robot Schematics Acquired . | . . . . . Robots Built . | . . . . . Authchips . | . . . . . Time . | . . . . . Total Robot Build Rating . | . . . . . Part Schematics Acquired . | . . . . . Parts Built . | . . . . . Authchips . | . . . . . Time . | . . . . . Total Part Build Rating . | . . . . . Parts Repaired . | . . . . . Time . | . . . . . Parts Recycled . | . . . . . Recycled Matter . | . . . . . Retrieved Matter . | . . . . . Retrieved Components . | . . . . . Parts Scanalyzed . | . . . . . Part Schematics Acquired . | . . . . . Parts Damaged . | . . . . . Bothacking | -11 -10 -10 -10 -9 ------------ Run | Yrd Mat Min Exi Min Used RIF Installer . | . . . . . Robots Hacked . | . . . . . Non-combat . | . . . . . Combat . | . . . . . Robot Hacks Applied . | . . . . . Relay Couplers Released . | . . . . . Fabnet Peak Effective % . | . . . . . Robots Rewired . | . . . . . Allies Hacked . | . . . . . Hacks Repelled . | . . . . . Allies | -11 -10 -10 -10 -9 -------- Run | Yrd Mat Min Exi Min Total Allies 3 | . . 3 . . Largest Group 3 | . . 3 3 3 Highest-Rated Group 40 | . . 40 40 40 Highest-Rated Ally 16 | . . 16 16 16 Total Orders . | . . . . . Ally Attacks 6 | . . . . 6 Total Damage 36 | . . . . 36 Kills . | . . . . . Allies Corrupted . | . . . . . Allies Melted . | . . . . . Intel | -11 -10 -10 -10 -9 ------- Run | Yrd Mat Min Exi Min Robot Analysis Total . | . . . . . Derelict Logs Recovered 3 | . . 2 . 1 Drone Launches . | . . . . . Drone Recoveries . | . . . . . Exploration | -11 -10 -10 -10 -9 ------------- Run | Yrd Mat Min Exi Min Turns Passed 1256 | 88 247 417 382 122 Spaces Moved 1364 | 30 178 403 597 156 Core 17 | 6 . . . 11 Treads 83 | 15 61 7 . . Legs 9 | 9 . . . . Wheels 262 | . 117 116 . 29 Hover 993 | . . 280 597 116 Flight . | . . . . . Fastest Speed 56 | 120 95 56 56 56 Average Speed 71 | 156 117 71 56 63 Slowest Speed 200 | 200 160 185 56 100 Overloaded Moves . | . . . . . Propulsion Burnouts . | . . . . . Robots Hopped . | . . . . . Cave-ins Triggered . | . . . . . Exploration Rate (%) 51 | 4 49 89 93 23 Regions Visited 4 Branch Regions 3 Pre-discovered Areas . | . . . . . Known Exits Taken 1 | . . 1 . . Unknown Exits Taken 3 | 1 1 . 1 . Scrap Searched 1 | . . 1 . . Spaces Dug . | . . . . . Terrain Destroyed 12 | . . . . 12 Melee . | . . . . . Projectile . | . . . . . AOE 12 | . . . . 12 Terrain Rammed . | . . . . . Walls Destroyed . | . . . . . Machines Disabled . | . . . . . Actions | -11 -10 -10 -10 -9 --------- Run | Yrd Mat Min Exi Min Total 1560 | 49 195 499 644 173 Wait 116 | . 4 64 48 . Move 1360 | 29 177 402 596 156 Hop . | . . . . . Pick Up 4 | 1 1 2 . . Fast Attach 6 | 2 . 2 . 2 Attach 3 | 1 . 1 . 1 Detach . | . . . . . Swap 3 | . . 3 . . Drop 7 | 2 . 5 . . Fire 53 | 14 13 20 . 6 Melee . | . . . . . Ram 8 | . . . . 8 Kick . | . . . . . Crush . | . . . . . Escape Stasis . | . . . . . Rewire . | . . . . . Trap . | . . . . . Miscellaneous . | . . . . . Route ------- -11/Scrapyard -10/Materials (discovered 3 exits: [*Mat] / [*Min x2]) -10/Mines (discovered 4 exits: [*Mat x2] / *Exi / Sub) -10/Exiles (discovered 2 exits: [*Min x2]) -9/Mines History --------- Turn | Location | Event 12 | -11/Scrapyard | Discovered new exit (range 3) 89 | -11/Scrapyard | Entered Materials 230 | -10/Materials | Discovered new exit (range 5) 275 | -10/Materials | Discovered new exit (range 7) 307 | -10/Materials | Build established: Mutant 319 | -10/Materials | Discovered new exit (range 7) 336 | -10/Materials | Entered Mines 391 | -10/Mines | Met a Derelict bent on vengeance 498 | -10/Mines | Received a Rocket Launcher from a helpful Derelict 507 | -10/Mines | Discovered new exit (range 6) 560 | -10/Mines | Found DCF Scrap (12 items) 617 | -10/Mines | Found a damaged Exp. Sensor Array with a note attached 618 | -10/Mines | Found Prototype Device 639 | -10/Mines | Identified exit to Exiles 676 | -10/Mines | Assisted by bots powering up and referring to "LRC-V3" 683 | -10/Mines | Discovered new exit (range 9) 689 | -10/Mines | Identified exit to Subcaves 724 | -10/Mines | Deemed a non-threat by the Exiles lab entrance 753 | -10/Mines | Entered Exiles 753 | -10/Exiles | Found Exiles lab abandoned 753 | -10/Exiles | Accompanied by 3 allies 768 | -10/Exiles | Discovered new exit (range 14) 939 | -10/Exiles | Discovered new exit (range 10) 1135 | -10/Exiles | Entered Mines 1135 | -9/Mines | Accompanied by 3 allies 1161 | -9/Mines | Assembled infested the area 1166 | -9/Mines | Assisted by a Guerilla fighting off Assembled 1192 | -9/Mines | Learned 8 Materials zone layouts 1212 | -9/Mines | Core integrity fell below 50% 1242 | -9/Mines | Lost 6 parts (1p2n1u2w) 1245 | -9/Mines | Destroyed 8 combat bots 1256 | -9/Mines | Core integrity fell below 20% 1257 | -9/Mines | Destroyed by D-53 Grenadier with Mini Grenade Launcher Last Messages --------------- 01210_ Hover Unit destroyed. 01210_ System corrupted by crushing effect (+3). 01211_ Destroyed Asb. Hover Unit. 01211_ as-40648 destroyed. 01211_ as-08189 destroyed. 01211_ Rocket Launcher destroyed. 01211_ Destroyed Rocket Launcher. 01211_ as-34078 destroyed. 01217_ Slammed into as-74991. 01219_ Destabilizing: System corrupted (+1). 01220_ Slammed into as-74991. 01224_ as-74991 destroyed. [Achievement: Fist Fight] 01230_ Acquired Imp. Terrain Scanner. 01233_ Acquired Wheel. 01237_ Acquired 20 matter. 01239_ The unstable cave ceiling collapses. 01254_ K-01 Serf collects debris. 01257_ The unstable cave ceiling collapses. 01257_ U-05 Engineer builds a Wall. Map ----- +----------------------------------------------------+ | ???????????????????# ##??? | | ???????????????????## #### # #???? | | ????????????????????####### #???? | | ???????????????????????## ##??? | | ???????????????????????# #???? | | ???????????????????????# #???? | | ???????????????????????# #???? | | ????????????????######## #???? | | ????????????????# # ##??? | | ??????????#?????? # ##?? | | ??????????# ??? = #?? | | ??????????# #####% # # #?? | | ???#####??# %%kk= # ##?? | | ??## ##?### ### ### ##?? | | ??# ##### ## ##??## #?? | | ?## ! ! #? #?## #?? | | ?# !########??# # ?# ##?? | | # ##????# ??# ## ##??? | | # !##????# ## # # #???? | | # #????# d ###??? | | ## ##???# ## #??? | | ?####??????????????# = #??? | | ???????????????????## #??? | | ????????????????????### % # ##??? | | ????????????????####### * # ##???? | | ????????????????# =%@###?#????? | | ????????????????#]#####!# #????????? | | ????????????????# #???# ###????????? | | ????????????????# #???# #??????????? | | ???????????????? #???# #??????????? | | ???????????????? ???# ?????????? | | ??????????????? ???#### #???????? | | ??????????????? ????????#???????? | | ?????????????? ????????????????? | | ?????????????? #???????????????? | | ????????????? #???????????????? | | ????????????? #???????????????? | | ???????????? ##???????????????? | | ???????????? #?????????????????? | | ??????????? #??????????????????? | | ??????????? ???????????????????? | | ????????????? ???????????????????? | | ???????????????#???????????????????? | | ???????????????????????????????????? | | ???????????????????????????????????? | | ???????????????????????????????????? | | ???????????????????????????????????? | | ???????????????????????????????????? | | ???????????????????????????????????? | | ???????????????????????????????????? | +----------------------------------------------------+ Best States ------------- Heat Dissipation 25 Energy Generation 14 Energy Capacity 160 Matter Stores 300 Matter Capacity 300 Sight Range 16 Terrain Scan Range 16 Terrain Scan Density 10 Evasion (%) 53 Recoil Reduction 1 Item Schematics ----------------- None Robot Schematics ------------------ None Fabricated ------------ Nothing Alien Tech Used ----------------- None Achievements -------------- Fist Fight Slippery One Challenges ------------ None Game ------ Seed GravitonGravmagShotgun Manual? 0 Play Time 00:22:42 Cumulative 18.6 hours Start 2024.11.19 @ 18:35:01 End 2024.11.19 @ 19:00:10 Sessions 1 Manual Loads 0 Difficulty Rogue Special Mode None Game No. 38 Rogue 35 Adventurer 3 Explorer 0 Win Type - Total 0 Types 0/0/0/0/0/0/0/0/0 Lore% 4 Gallery% 17 Achievement% 16 Wizard Run 0 Options --------- Layout 2 ASCII 0 Keyboard 0 Movement Arrows Keybinds 0 Fullscreen 1 Font 24/Terminus Map View 50x44 Zoom Use 0% Tactical HUD 1 Map Filters NONE Filters NONE Steam 1 RUN: 48db78ea-f9bd-47bd-875d-a5d27c328b93